[Event "Italian Youth U20 Championship 2023"]
[Site "Brescia"]
[Date "2023.12.05"]
[Round "3.1"]
[White "Bettalli, Francesco"]
[Black "Pozzari, Simone"]
[Result "1-0"]
[ECO "C13"]
[WhiteElo "2274"]
[BlackElo "2186"]
[Annotator "RC"]
[PlyCount "67"]
[EventDate "2023.12.03"]
[EventType "tourn"]
[EventCountry "ITA"]
[SourceTitle "playchess.com"]
[Source "ChessBase"]
[SourceQuality "1"]
[TimeControl "40/6000+30:20/3000+30:900+30"]

1. e4 {[%emt 0:00:01]} e6 {[%emt 0:04:33]} 2. d4 {[%emt 0:00:19]} d5 {[%emt 0:00:08]} 3. Nc3 {[%emt 0:00:11]} Nf6 {[%emt 0:00:27]} 4. Bg5 {[%emt 0:00:06]} dxe4 {[%emt 0:00:11]} 5. Nxe4 {[%emt 0:00:12]} Be7 {[%emt 0:00:06]} 6. Bxf6 {[%emt 0:00:09]} gxf6 {[%emt 0:00:07]} 7. g3 {[%emt 0:02:53]} f5 {[%emt 0:02:45]} 8. Nc3 {[%emt 0:00:05]} Bf6 {[%emt 0:00:03]} 9. Nf3 {[%emt 0:01:54]} c5 {[%emt 0:00:49]} 10. dxc5 {[%emt 0:09:43]} Qa5 {[%emt 0:00:17]} 11. Qd2 {[%emt 0:09:36]} Qxc5 {[%emt 0:00:07]} 12. Bg2 {[%emt 0:02:56]} O-O {[%emt 0:00:20]} 13. O-O {[%emt 0:00:24]} Bd7 {[%emt 0:15:57]} 14. Rad1 {[%emt 0:06:09]} Bc6 {[%emt 0:02:30]} 15. Ne2 {[%emt 0:01:36]} Be4 {[%emt 0:08:14]} 16. c3 {[%emt 0:03:52]} Nc6 {[%emt 0:01:53]} 17. Nf4 {[%emt 0:03:47]} Rfd8 {[%emt 0:13:12]} 18. Qc1 {[%emt 0:06:51]} Qe7 {[%emt 0:08:48]} 19. h4 {[%emt 0:08:14]} Rac8 {[%emt 0:07:26]} 20. Qe3 {[%emt 0:06:59]} b5 {[%emt 0:07:24]} 21. Nh5 {[%emt 0:02:35]} Bh8 {[%emt 0:01:25]} 22. Qh6 {[%emt 0:09:40]} Bxf3 {[%emt 0:02:23]} 23. Bxf3 {[%emt 0:00:01]} b4 {[%emt 0:07:18]} 24. Rxd8+ {[%emt 0:03:42]} Nxd8 {[%emt 0:08:36]} 25. cxb4 {[%emt 0:00:26]} Bxb2 {[%emt 0:01:56]} 26. Rd1 {[%emt 0:00:15]} Bh8 {[%emt 0:09:06]} 27. b5 {[%emt 0:00:40]} e5 {[%emt 0:00:46]} 28. Bc6 {[%emt 0:02:38]} Ne6 {[%emt 0:02:47]} 29. Rd7 {[%emt 0:00:48]} Qf8 {[%emt 0:04:26]} 30. Nf6+ {[%emt 0:00:06]} Bxf6 {[%emt 0:00:02]} 31. Qxf6 {[%emt 0:00:01]} Nd4 {[%emt 0:01:03]} 32. Bd5 {[%emt 0:00:26]} Qg7 {[%emt 0:00:37]} 33. Bxf7+ {[%emt 0:00:29]} Kh8 {[%emt 0:00:12]} 34. Rd8+ {[%emt 0:00:04]} 1-0

[Event "Italian Youth U20 Championship 2023"]
[Site "Brescia"]
[Date "2023.12.05"]
[Round "3.2"]
[White "Perossa, Nicolas"]
[Black "Vincenti, Leonardo"]
[Result "0-1"]
[ECO "B90"]
[WhiteElo "2330"]
[BlackElo "2120"]
[Annotator "RC"]
[PlyCount "68"]
[EventDate "2023.12.03"]
[EventType "tourn"]
[EventCountry "ITA"]
[SourceTitle "playchess.com"]
[Source "ChessBase"]
[SourceQuality "1"]
[TimeControl "40/6000+30:20/3000+30:900+30"]

1. e4 {[%emt 0:02:21]} c5 {[%emt 0:00:04]} 2. Nf3 {[%emt 0:00:06]} d6 {[%emt 0:00:04]} 3. d4 {[%emt 0:00:06]} cxd4 {[%emt 0:00:03]} 4. Nxd4 {[%emt 0:00:09]} Nf6 {[%emt 0:00:05]} 5. Nc3 {[%emt 0:00:06]} a6 {[%emt 0:00:01]} 6. Be3 {[%emt 0:01:01]} e5 {[%emt 0:00:10]} 7. Nb3 {[%emt 0:00:08]} Be6 {[%emt 0:00:08]} 8. h3 {[%emt 0:00:05]} h5 {[%emt 0:00:20]} 9. Be2 {[%emt 0:07:43]} Be7 {[%emt 0:02:42]} 10. Rf1 {[%emt 0:35:37]} d5 {[%emt 0:19:55]} 11. exd5 {[%emt 0:00:07]} Nxd5 {[%emt 0:00:57]} 12. Nxd5 {[%emt 0:00:33]} Bxd5 {[%emt 0:01:18]} 13. Bxh5 {[%emt 0:39:51]} Bxg2 {[%emt 0:21:46]} 14. Rg1 {[%emt 0:00:09]} Qxd1+ {[%emt 0:00:19]} 15. Bxd1 {[%emt 0:00:32]} Be4 {[%emt 0:00:17]} 16. Nd2 {[%emt 0:04:55]} Bg6 {[%emt 0:02:58]} 17. Nc4 {[%emt 0:11:46]} Nc6 {[%emt 0:01:04]} 18. Bb6 {[%emt 0:00:31]} Rh4 {[%emt 0:05:43]} 19. Be2 {[%emt 0:01:32]} Nb4 {[%emt 0:03:53]} 20. Ne3 {[%emt 0:00:37]} Rxh3 {[%emt 0:03:19]} 21. Kf1 {[%emt 0:02:22]} Rh7 {[%emt 0:24:04]} 22. Rd1 {[%emt 0:00:36]} Nxc2 {[%emt 0:01:19]} 23. Nc4 {[%emt 0:00:35]} Bf5 {[%emt 0:01:00]} 24. a3 {[%emt 0:00:30]} Bh3+ {[%emt 0:00:15]} 25. Rg2 {[%emt 0:00:00]} Rh4 {[%emt 0:11:01]} 26. Nxe5 {[%emt 0:00:20]} Re4 {[%emt 0:00:42]} 27. Rd5 {[%emt 0:01:10]} Bf6 {[%emt 0:05:04]} 28. Nc4 {[%emt 0:00:28]} Bxg2+ {[%emt 0:00:57]} 29. Kxg2 {[%emt 0:00:01]} Rxe2 {[%emt 0:00:19]} 30. Nd6+ {[%emt 0:00:25]} Kf8 {[%emt 0:00:11]} 31. Nxb7 {[%emt 0:00:23]} Rb8 {[%emt 0:01:21]} 32. Nc5 {[%emt 0:00:12]} Ne3+ {[%emt 0:00:18]} 33. Kf3 {[%emt 0:00:00]} Nxd5 {[%emt 0:00:10]} 34. Nd7+ {[%emt 0:00:06]} Kg8 {[%emt 0:00:08]} 0-1

[Event "Italian Youth U20 Championship 2023"]
[Site "Brescia"]
[Date "2023.12.05"]
[Round "3.3"]
[White "Cappelletto, Joshuaede"]
[Black "Bin-Suhayl, Ieysaa"]
[Result "1-0"]
[ECO "C78"]
[WhiteElo "2329"]
[BlackElo "2248"]
[Annotator "RC"]
[PlyCount "45"]
[EventDate "2023.12.03"]
[EventType "tourn"]
[EventCountry "ITA"]
[SourceTitle "playchess.com"]
[Source "ChessBase"]
[SourceQuality "1"]
[TimeControl "40/6000+30:20/3000+30:900+30"]

1. e4 {[%emt 0:00:05]} e5 {[%emt 0:02:53]} 2. Nf3 {[%emt 0:00:10]} Nc6 {[%emt 0:00:05]} 3. Bb5 {[%emt 0:00:04]} a6 {[%emt 0:00:25]} 4. Ba4 {[%emt 0:00:05]} Nf6 {[%emt 0:00:03]} 5. O-O {[%emt 0:00:08]} b5 {[%emt 0:10:11]} 6. Bb3 {[%emt 0:00:05]} Bc5 {[%emt 0:00:02]} 7. c3 {[%emt 0:05:28]} d6 {[%emt 0:01:57]} 8. d4 {[%emt 0:00:23]} Bb6 {[%emt 0:00:15]} 9. a4 {[%emt 0:00:06]} Bb7 {[%emt 0:07:06]} 10. Re1 {[%emt 0:09:48]} O-O {[%emt 0:02:02]} 11. Bg5 {[%emt 0:08:44]} h6 {[%emt 0:08:08]} 12. axb5 {[%emt 0:01:18]} axb5 {[%emt 0:05:16]} 13. Rxa8 {[%emt 0:00:07]} Bxa8 {[%emt 0:00:03]} 14. Bh4 {[%emt 0:01:06]} exd4 {[%emt 0:01:25]} 15. cxd4 {[%emt 0:14:55]} g5 {[%emt 0:01:24]} 16. Bg3 {[%emt 0:02:18]} Nh5 {[%emt 0:11:37]} 17. Qd3 {[%emt 0:15:03]} Nxg3 {[%emt 0:01:04]} 18. hxg3 {[%emt 0:01:38]} g4 {[%emt 0:06:35]} 19. e5 {[%emt 0:18:10]} Kh8 {[%emt 0:10:58]} 20. Bc2 {[%emt 0:01:16]} f5 {[%emt 0:01:53]} 21. exf6 {[%emt 0:00:40]} Rf7 {[%emt 0:00:05]} 22. Qg6 {[%emt 0:04:01]} Qxf6 {[%emt 0:00:12]} 23. Re8+ {[%emt 0:00:07]} 1-0

[Event "Italian Youth U20 Championship 2023"]
[Site "Brescia"]
[Date "2023.12.05"]
[Round "3.4"]
[White "Titze, Leo"]
[Black "Pegno, Mattia"]
[Result "1-0"]
[ECO "D20"]
[WhiteElo "2164"]
[BlackElo "2155"]
[Annotator "RC"]
[PlyCount "85"]
[EventDate "2023.12.03"]
[EventType "tourn"]
[EventCountry "ITA"]
[SourceTitle "playchess.com"]
[Source "ChessBase"]
[SourceQuality "1"]
[TimeControl "40/6000+30:20/3000+30:900+30"]

1. d4 {[%emt 0:00:03]} d5 {[%emt 0:00:13]} 2. c4 {[%emt 0:00:05]} dxc4 {[%emt 0:00:10]} 3. e4 {[%emt 0:00:06]} b5 {[%emt 0:00:25]} 4. a4 {[%emt 0:08:48]} c6 {[%emt 0:00:52]} 5. axb5 {[%emt 0:12:18]} cxb5 {[%emt 0:00:49]} 6. b3 {[%emt 0:00:20]} e6 {[%emt 0:18:15]} 7. Nf3 {[%emt 0:01:57]} Nf6 {[%emt 0:09:18]} 8. e5 {[%emt 0:01:37]} Nd5 {[%emt 0:01:08]} 9. bxc4 {[%emt 0:00:16]} bxc4 {[%emt 0:00:19]} 10. Bxc4 {[%emt 0:00:35]} Be7 {[%emt 0:03:12]} 11. O-O {[%emt 0:00:53]} O-O {[%emt 0:03:37]} 12. Nbd2 {[%emt 0:13:39]} a5 {[%emt 0:07:13]} 13. Ne4 {[%emt 0:01:49]} Ba6 {[%emt 0:03:30]} 14. Bxa6 {[%emt 0:04:25]} Nxa6 {[%emt 0:02:41]} 15. Bg5 {[%emt 0:00:33]} Bxg5 {[%emt 0:06:23]} 16. Nfxg5 {[%emt 0:00:44]} h6 {[%emt 0:06:56]} 17. Nf3 {[%emt 0:00:41]} Nab4 {[%emt 0:05:01]} 18. Nc5 {[%emt 0:06:00]} Nb6 {[%emt 0:04:48]} 19. Qd2 {[%emt 0:11:28]} Qd5 {[%emt 0:09:20]} 20. Rfd1 {[%emt 0:13:14]} Rfb8 {[%emt 0:01:38]} 21. Qc3 {[%emt 0:10:53]} Ra7 {[%emt 0:07:17]} 22. Nd2 {[%emt 0:00:58]} Rba8 {[%emt 0:11:11]} 23. Nde4 {[%emt 0:00:39]} Qc4 {[%emt 0:01:45]} 24. Qg3 {[%emt 0:01:08]} N6d5 {[%emt 0:02:03]} 25. Nd6 {[%emt 0:06:36]} Qc3 {[%emt 0:01:34]} 26. Qg4 {[%emt 0:02:48]} a4 {[%emt 0:01:08]} 27. Nb5 {[%emt 0:01:29]} Qc2 {[%emt 0:01:44]} 28. Nxa7 {[%emt 0:04:11]} Rxa7 {[%emt 0:00:05]} 29. Rdc1 {[%emt 0:01:55]} Qb2 {[%emt 0:01:52]} 30. Qf3 {[%emt 0:04:07]} Qxd4 {[%emt 0:00:28]} 31. Rxa4 {[%emt 0:01:06]} Rxa4 {[%emt 0:00:27]} 32. Nxa4 {[%emt 0:01:09]} Qxe5 {[%emt 0:00:25]} 33. h3 {[%emt 0:00:00]} g6 {[%emt 0:00:27]} 34. Nc5 {[%emt 0:00:25]} Kg7 {[%emt 0:00:36]} 35. g3 {[%emt 0:00:29]} Na2 {[%emt 0:00:36]} 36. Rf1 {[%emt 0:00:35]} Nac3 {[%emt 0:00:31]} 37. Nd3 {[%emt 0:00:17]} Qd4 {[%emt 0:00:30]} 38. Re1 {[%emt 0:00:22]} h5 {[%emt 0:00:24]} 39. Ne5 {[%emt 0:00:25]} Nf6 {[%emt 0:00:30]} 40. Qb7 {[%emt 0:00:35]} Kh6 {[%emt 0:00:36]} 41. Nxf7+ {[%emt 0:50:17]} Kg7 {[%emt 0:02:35]} 42. Ne5+ {[%emt 0:00:00]} Kh8 {[%emt 0:07:37]} 43. Qf7 {[%emt 0:02:05]} 1-0

[Event "Italian Youth U20 Championship 2023"]
[Site "Brescia"]
[Date "2023.12.06"]
[Round "4.1"]
[White "Pozzari, Simone"]
[Black "Pegno, Mattia"]
[Result "1-0"]
[ECO "C54"]
[WhiteElo "2186"]
[BlackElo "2155"]
[Annotator "RC"]
[PlyCount "113"]
[EventDate "2023.12.03"]
[EventType "tourn"]
[EventCountry "ITA"]
[SourceTitle "playchess.com"]
[Source "ChessBase"]
[SourceQuality "1"]
[TimeControl "40/6000+30:20/3000+30:900+30"]

1. e4 {[%emt 0:02:26]} e5 {[%emt 0:00:09]} 2. Nf3 {[%emt 0:00:21]} Nc6 {[%emt 0:00:07]} 3. Bc4 {[%emt 0:00:16]} Bc5 {[%emt 0:02:29]} 4. c3 {[%emt 0:00:17]} Nf6 {[%emt 0:00:09]} 5. d3 {[%emt 0:00:04]} O-O {[%emt 0:00:12]} 6. O-O {[%emt 0:00:09]} d5 {[%emt 0:00:07]} 7. exd5 {[%emt 0:00:06]} Nxd5 {[%emt 0:00:06]} 8. a4 {[%emt 0:00:07]} a5 {[%emt 0:17:09]} 9. Nbd2 {[%emt 0:00:09]} Nb6 {[%emt 0:01:16]} 10. Bb5 {[%emt 0:00:44]} Bg4 {[%emt 0:05:13]} 11. Ne4 {[%emt 0:04:13]} Bd6 {[%emt 0:03:23]} 12. Re1 {[%emt 0:07:11]} Re8 {[%emt 0:10:16]} 13. h3 {[%emt 0:10:54]} Bh5 {[%emt 0:00:47]} 14. Ng3 {[%emt 0:00:54]} Bg6 {[%emt 0:00:18]} 15. Bg5 {[%emt 0:00:39]} f6 {[%emt 0:15:24]} 16. Be3 {[%emt 0:00:52]} Kh8 {[%emt 0:08:32]} 17. Nh4 {[%emt 0:21:08]} Bf7 {[%emt 0:04:19]} 18. Ne4 {[%emt 0:03:42]} Nd5 {[%emt 0:02:50]} 19. Bc4 {[%emt 0:01:04]} Nxe3 {[%emt 0:07:09]} 20. Rxe3 {[%emt 0:00:22]} Qd7 {[%emt 0:03:24]} 21. Qf3 {[%emt 0:06:16]} Bxc4 {[%emt 0:06:13]} 22. dxc4 {[%emt 0:00:16]} Qe6 {[%emt 0:00:44]} 23. Qh5 {[%emt 0:04:51]} Bf8 {[%emt 0:03:24]} 24. Rg3 {[%emt 0:08:19]} Red8 {[%emt 0:06:15]} 25. b3 {[%emt 0:05:55]} b6 {[%emt 0:01:45]} 26. Rf1 {[%emt 0:06:42]} Rd7 {[%emt 0:03:27]} 27. f4 {[%emt 0:06:00]} exf4 {[%emt 0:01:13]} 28. Ng6+ {[%emt 0:12:16]} Kg8 {[%emt 0:00:03]} 29. Rxf4 {[%emt 0:00:06]} hxg6 {[%emt 0:05:33]} 30. Qxg6 {[%emt 0:00:05]} Bc5+ {[%emt 0:00:49]} 31. Nxc5 {[%emt 0:08:48]} bxc5 {[%emt 0:00:11]} 32. Rxf6 {[%emt 0:00:04]} Qe1+ {[%emt 0:01:28]} 33. Rf1 {[%emt 0:00:13]} Qe5 {[%emt 0:01:42]} 34. Qxc6 {[%emt 0:00:13]} Rad8 {[%emt 0:00:30]} 35. Qf3 {[%emt 0:00:24]} Re8 {[%emt 0:00:48]} 36. Qf4 {[%emt 0:01:35]} Qxf4 {[%emt 0:00:33]} 37. Rxf4 {[%emt 0:00:02]} Rd1+ {[%emt 0:00:24]} 38. Rf1 {[%emt 0:00:31]} Rd2 {[%emt 0:00:36]} 39. Rf5 {[%emt 0:00:31]} Re1+ {[%emt 0:00:32]} 40. Kh2 {[%emt 0:00:11]} Rb2 {[%emt 0:00:27]} 41. Rxc5 {[%emt 0:02:00]} Rbb1 {[%emt 0:13:49]} 42. Rf3 {[%emt 0:01:16]} Rxb3 {[%emt 0:01:49]} 43. Rxa5 {[%emt 0:00:21]} Ra3 {[%emt 0:06:25]} 44. Ra7 {[%emt 0:00:30]} c5 {[%emt 0:06:38]} 45. Rg3 {[%emt 0:00:17]} Kh8 {[%emt 0:00:27]} 46. Rgxg7 {[%emt 0:00:36]} Rh1+ {[%emt 0:01:07]} 47. Kxh1 {[%emt 0:01:38]} Ra1+ {[%emt 0:00:15]} 48. Kh2 {[%emt 0:00:03]} Rh1+ {[%emt 0:00:07]} 49. Kg3 {[%emt 0:00:03]} Rxh3+ {[%emt 0:00:06]} 50. Kf4 {[%emt 0:00:09]} Rf3+ {[%emt 0:01:15]} 51. Ke4 {[%emt 0:01:20]} Re3+ {[%emt 0:06:57]} 52. Kd5 {[%emt 0:00:05]} Rd3+ {[%emt 0:00:20]} 53. Kc6 {[%emt 0:00:06]} Rd6+ {[%emt 0:00:11]} 54. Kb5 {[%emt 0:00:06]} Rb6+ {[%emt 0:00:25]} 55. Ka5 {[%emt 0:00:05]} Rg6 {[%emt 0:00:49]} 56. Rh7+ {[%emt 0:00:08]} Kg8 {[%emt 0:00:06]} 57. Rhb7 {[%emt 0:00:11]} 1-0

[Event "Italian Youth U20 Championship 2023"]
[Site "Brescia"]
[Date "2023.12.06"]
[Round "4.2"]
[White "Bin-Suhayl, Ieysaa"]
[Black "Titze, Leo"]
[Result "1/2-1/2"]
[ECO "E08"]
[WhiteElo "2248"]
[BlackElo "2164"]
[Annotator "RC"]
[PlyCount "81"]
[EventDate "2023.12.03"]
[EventType "tourn"]
[EventCountry "ITA"]
[SourceTitle "playchess.com"]
[Source "ChessBase"]
[SourceQuality "1"]
[TimeControl "40/6000+30:20/3000+30:900+30"]

1. d4 {[%emt 0:02:42]} d5 {[%emt 0:00:56]} 2. c4 {[%emt 0:00:48]} e6 {[%emt 0:00:27]} 3. Nf3 {[%emt 0:00:04]} Nf6 {[%emt 0:00:23]} 4. g3 {[%emt 0:00:14]} Bb4+ {[%emt 0:01:23]} 5. Bd2 {[%emt 0:00:06]} Be7 {[%emt 0:00:04]} 6. Bg2 {[%emt 0:00:11]} O-O {[%emt 0:00:12]} 7. Qc2 {[%emt 0:00:09]} Nbd7 {[%emt 0:02:08]} 8. O-O {[%emt 0:00:13]} Ne4 {[%emt 0:01:20]} 9. Bf4 {[%emt 0:00:39]} c6 {[%emt 0:00:32]} 10. Nc3 {[%emt 0:00:58]} g5 {[%emt 0:01:45]} 11. Be3 {[%emt 0:00:11]} Nd6 {[%emt 0:00:59]} 12. b3 {[%emt 0:00:29]} Nf5 {[%emt 0:00:24]} 13. Bd2 {[%emt 0:02:06]} g4 {[%emt 0:01:02]} 14. Ne1 {[%emt 0:00:03]} Nxd4 {[%emt 0:00:15]} 15. Qd1 {[%emt 0:00:03]} Bf6 {[%emt 0:00:37]} 16. e3 {[%emt 0:02:02]} Nf3+ {[%emt 0:00:20]} 17. Nxf3 {[%emt 0:00:19]} gxf3 {[%emt 0:00:06]} 18. Qxf3 {[%emt 0:01:18]} Bg7 {[%emt 0:00:29]} 19. Qe2 {[%emt 0:02:07]} Qe7 {[%emt 0:06:40]} 20. Rac1 {[%emt 0:02:18]} Nf6 {[%emt 0:08:41]} 21. Rfd1 {[%emt 0:04:29]} Bd7 {[%emt 0:04:06]} 22. e4 {[%emt 0:02:23]} Nxe4 {[%emt 0:01:03]} 23. Nxe4 {[%emt 0:01:17]} dxe4 {[%emt 0:00:07]} 24. Qxe4 {[%emt 0:00:54]} Rad8 {[%emt 0:08:07]} 25. c5 {[%emt 0:03:41]} Bc8 {[%emt 0:02:11]} 26. Ba5 {[%emt 0:04:03]} Rxd1+ {[%emt 0:00:26]} 27. Rxd1 {[%emt 0:00:11]} e5 {[%emt 0:01:52]} 28. Rd6 {[%emt 0:11:53]} Be6 {[%emt 0:22:26]} 29. Bc3 {[%emt 0:06:15]} Qg5 {[%emt 0:06:32]} 30. Bd2 {[%emt 0:07:52]} Qg6 {[%emt 0:04:07]} 31. h4 {[%emt 0:02:48]} Re8 {[%emt 0:03:42]} 32. Qb4 {[%emt 0:14:29]} Qb1+ {[%emt 0:14:47]} 33. Kh2 {[%emt 0:01:06]} Bf8 {[%emt 0:02:57]} 34. Qxb7 {[%emt 0:04:50]} Qxa2 {[%emt 0:01:46]} 35. Be3 {[%emt 0:11:24]} Bxd6 {[%emt 0:08:56]} 36. cxd6 {[%emt 0:02:46]} Qa3 {[%emt 0:03:17]} 37. d7 {[%emt 0:10:54]} Rd8 {[%emt 0:00:59]} 38. Bxc6 {[%emt 0:07:31]} Qd6 {[%emt 0:02:30]} 39. Bg5 {[%emt 0:00:59]} Bxd7 {[%emt 0:00:49]} 40. Bxd8 {[%emt 0:00:25]} Bxc6 {[%emt 0:00:27]} 41. Qe7 {[%emt 0:06:34]} 1/2-1/2

[Event "Italian Youth U20 Championship 2023"]
[Site "Brescia"]
[Date "2023.12.06"]
[Round "4.3"]
[White "Vincenti, Leonardo"]
[Black "Cappelletto, Joshuaede"]
[Result "0-1"]
[ECO "B51"]
[WhiteElo "2120"]
[BlackElo "2329"]
[Annotator "RC"]
[PlyCount "110"]
[EventDate "2023.12.03"]
[EventType "tourn"]
[EventCountry "ITA"]
[SourceTitle "playchess.com"]
[Source "ChessBase"]
[SourceQuality "1"]
[TimeControl "40/6000+30:20/3000+30:900+30"]

1. e4 {[%emt 0:03:34]} c5 {[%emt 0:00:12]} 2. Nf3 {[%emt 0:00:08]} d6 {[%emt 0:00:06]} 3. Bb5+ {[%emt 0:00:07]} Nd7 {[%emt 0:00:06]} 4. O-O {[%emt 0:00:04]} Ngf6 {[%emt 0:01:29]} 5. Re1 {[%emt 0:00:41]} a6 {[%emt 0:01:27]} 6. Bf1 {[%emt 0:00:02]} b6 {[%emt 0:03:03]} 7. d4 {[%emt 0:11:16]} cxd4 {[%emt 0:03:36]} 8. Nxd4 {[%emt 0:00:58]} Bb7 {[%emt 0:01:38]} 9. f3 {[%emt 0:01:54]} g6 {[%emt 0:01:21]} 10. c4 {[%emt 0:00:48]} Bg7 {[%emt 0:00:39]} 11. Nc3 {[%emt 0:01:54]} O-O {[%emt 0:00:09]} 12. b3 {[%emt 0:07:50]} Re8 {[%emt 0:14:13]} 13. Bb2 {[%emt 1:17:44]} e6 {[%emt 0:03:05]} 14. Qd2 {[%emt 0:00:00]} Qc7 {[%emt 0:07:46]} 15. Rac1 {[%emt 0:00:00]} Rad8 {[%emt 0:06:00]} 16. Red1 {[%emt 0:00:00]} Qb8 {[%emt 0:08:08]} 17. Nde2 {[%emt 0:00:00]} Ne5 {[%emt 0:23:24]} 18. Qe3 {[%emt 0:00:00]} d5 {[%emt 0:05:36]} 19. Qxb6 {[%emt 0:00:00]} dxe4 {[%emt 0:00:43]} 20. Rxd8 {[%emt 0:00:00]} Rxd8 {[%emt 0:00:06]} 21. Nxe4 {[%emt 0:00:00]} Nxe4 {[%emt 0:01:33]} 22. Bxe5 {[%emt 0:00:00]} Bxe5 {[%emt 0:00:10]} 23. fxe4 {[%emt 0:00:00]} Bxh2+ {[%emt 0:00:35]} 24. Kh1 {[%emt 0:00:00]} Bxe4 {[%emt 0:03:46]} 25. Qxb8 {[%emt 0:00:00]} Bxb8 {[%emt 0:00:06]} 26. c5 {[%emt 0:00:00]} Bc7 {[%emt 0:06:55]} 27. Nc3 {[%emt 0:00:00]} Bb7 {[%emt 0:01:26]} 28. Na4 {[%emt 0:00:00]} Rd2 {[%emt 0:02:15]} 29. c6 {[%emt 0:00:00]} Bc8 {[%emt 0:00:07]} 30. Nc3 {[%emt 0:00:00]} Kf8 {[%emt 0:01:23]} 31. a4 {[%emt 0:00:00]} Ke7 {[%emt 0:00:52]} 32. b4 {[%emt 0:01:02]} Rd4 {[%emt 0:00:19]} 33. g3 {[%emt 0:03:23]} Rxb4 {[%emt 0:00:08]} 34. Re1 {[%emt 0:00:01]} Rd4 {[%emt 0:01:09]} 35. Re4 {[%emt 0:00:18]} Rxe4 {[%emt 0:01:47]} 36. Nxe4 {[%emt 0:00:09]} f5 {[%emt 0:01:37]} 37. Nc5 {[%emt 0:00:04]} Kd6 {[%emt 0:03:05]} 38. Nxa6 {[%emt 0:00:08]} Bxa6 {[%emt 0:00:21]} 39. Bxa6 {[%emt 0:00:06]} Kxc6 {[%emt 0:00:03]} 40. Kg2 {[%emt 0:00:21]} Kd5 {[%emt 0:01:33]} 41. Bc8 {[%emt 0:51:32]} e5 {[%emt 0:50:32]} 42. g4 {[%emt 0:00:40]} Ke4 {[%emt 0:00:05]} 43. gxf5 {[%emt 0:00:09]} gxf5 {[%emt 0:00:06]} 44. Bb7+ {[%emt 0:02:14]} Ke3 {[%emt 0:00:34]} 45. Bc8 {[%emt 0:00:34]} f4 {[%emt 0:00:08]} 46. Bb7 {[%emt 0:01:06]} e4 {[%emt 0:00:05]} 47. Kf1 {[%emt 0:00:04]} f3 {[%emt 0:00:04]} 48. Bc6 {[%emt 0:03:03]} Kf4 {[%emt 0:00:12]} 49. Bd5 {[%emt 0:00:51]} e3 {[%emt 0:00:11]} 50. Bc4 {[%emt 0:00:27]} Kg3 {[%emt 0:00:10]} 51. Bd3 {[%emt 0:00:18]} h5 {[%emt 0:00:05]} 52. Bc4 {[%emt 0:00:03]} h4 {[%emt 0:00:04]} 53. a5 {[%emt 0:00:03]} Bxa5 {[%emt 0:00:05]} 54. Bb5 {[%emt 0:00:16]} h3 {[%emt 0:00:05]} 55. Bc6 {[%emt 0:00:02]} e2+ {[%emt 0:00:08]} 0-1

[Event "Italian Youth U20 Championship 2023"]
[Site "Brescia"]
[Date "2023.12.06"]
[Round "4.4"]
[White "Bettalli, Francesco"]
[Black "Perossa, Nicolas"]
[Result "1-0"]
[ECO "D36"]
[WhiteElo "2274"]
[BlackElo "2330"]
[Annotator "RC"]
[PlyCount "57"]
[EventDate "2023.12.03"]
[EventType "tourn"]
[EventCountry "ITA"]
[SourceTitle "playchess.com"]
[Source "ChessBase"]
[SourceQuality "1"]
[TimeControl "40/6000+30:20/3000+30:900+30"]

1. d4 {[%emt 0:00:02]} Nf6 {[%emt 0:05:40]} 2. c4 {[%emt 0:00:05]} e6 {[%emt 0:00:15]} 3. Nc3 {[%emt 0:00:10]} d5 {[%emt 0:00:08]} 4. cxd5 {[%emt 0:00:18]} exd5 {[%emt 0:00:06]} 5. Bg5 {[%emt 0:00:07]} Be7 {[%emt 0:00:19]} 6. e3 {[%emt 0:00:19]} c6 {[%emt 0:00:38]} 7. Bd3 {[%emt 0:01:18]} Nbd7 {[%emt 0:02:12]} 8. h3 {[%emt 0:02:29]} O-O {[%emt 0:05:18]} 9. Nf3 {[%emt 0:00:14]} Re8 {[%emt 0:03:59]} 10. Qc2 {[%emt 0:05:41]} Nf8 {[%emt 0:16:15]} 11. O-O {[%emt 0:04:52]} g6 {[%emt 0:11:01]} 12. Ne5 {[%emt 0:02:23]} Nh5 {[%emt 0:06:29]} 13. Bh6 {[%emt 0:18:00]} Ng7 {[%emt 0:08:50]} 14. f4 {[%emt 0:07:26]} Nf5 {[%emt 0:16:09]} 15. Bxf5 {[%emt 0:01:17]} Bxf5 {[%emt 0:00:17]} 16. Qe2 {[%emt 0:03:32]} f6 {[%emt 0:04:21]} 17. Nf3 {[%emt 0:00:42]} Bd6 {[%emt 0:13:43]} 18. g4 {[%emt 0:01:54]} Be4 {[%emt 0:00:01]} 19. Nd2 {[%emt 0:02:52]} Nd7 {[%emt 0:13:39]} 20. Ndxe4 {[%emt 0:02:39]} dxe4 {[%emt 0:00:01]} 21. Qc2 {[%emt 0:05:41]} Bf8 {[%emt 0:01:06]} 22. Bxf8 {[%emt 0:00:59]} Kxf8 {[%emt 0:00:25]} 23. d5 {[%emt 0:08:36]} Qb6 {[%emt 0:00:35]} 24. dxc6 {[%emt 0:01:58]} Qxe3+ {[%emt 0:00:14]} 25. Kg2 {[%emt 0:00:23]} bxc6 {[%emt 0:00:15]} 26. Rae1 {[%emt 0:01:06]} Qd3 {[%emt 0:00:01]} 27. Qa4 {[%emt 0:01:16]} Kg7 {[%emt 0:01:30]} 28. Rd1 {[%emt 0:00:19]} Nb6 {[%emt 0:00:01]} 29. Rxd3 {[%emt 0:00:05]} 1-0